[Event "*** Titled Tuesday 3|2 Blitz"]
[Site "Chess.com"]
[Date "2015.12.01"]
[Round "4"]
[White "Dlugy"]
[Black "Alliswell998"]
[Result "1-0"]
[WhiteElo "2519"]
[BlackElo "2139"]
[TimeControl "180+2"]
[EndTime "17:48:45 PST"]
[Termination "Dlugy won by resignation"]

1. d4 {[%clk 0:03:01.9]} 1... Nf6 {[%clk 0:01:56.5]} 2. Bf4 {[%clk 0:03:01]}
2... c5 {[%clk 0:01:56.7]} 3. d5 {[%clk 0:03:01.8]} 3... b5 {[%clk 0:01:56.6]}
4. a4 {[%clk 0:03:02.5]} 4... b4 {[%clk 0:01:57.1]} 5. c4 {[%clk 0:03:00.7]}
5... d6 {[%clk 0:01:58.4]} 6. Nd2 {[%clk 0:02:59.9]} 6... g6 {[%clk 0:01:59.6]}
7. e4 {[%clk 0:03:01]} 7... Bg7 {[%clk 0:02:00]} 8. Qc2 {[%clk 0:03:01.9]} 8...
Nbd7 {[%clk 0:02:01.5]} 9. Ngf3 {[%clk 0:03:01.8]} 9... O-O {[%clk 0:02:03]} 10.
Be2 {[%clk 0:02:57.9]} 10... a5 {[%clk 0:02:02]} 11. O-O {[%clk 0:02:58.7]}
11... Qc7 {[%clk 0:02:01.3]} 12. h3 {[%clk 0:02:59.8]} 12... Ra7 {[%clk
0:01:57.5]} 13. Rad1 {[%clk 0:02:59.9]} 13... Re8 {[%clk 0:01:54.3]} 14. Rfe1
{[%clk 0:02:58.2]} 14... Ne5 {[%clk 0:01:54.7]} 15. Nxe5 {[%clk 0:02:58.7]}
15... dxe5 {[%clk 0:01:56.6]} 16. Bh2 {[%clk 0:03:00]} 16... Rd8 {[%clk
0:01:56.4]} 17. Nb3 {[%clk 0:02:48.6]} 17... Ne8 {[%clk 0:01:55.7]} 18. Nc1
{[%clk 0:02:48.9]} 18... Nd6 {[%clk 0:01:47]} 19. Bf1 {[%clk 0:02:46.7]} 19...
f5 {[%clk 0:01:44]} 20. exf5 {[%clk 0:02:45.9]} 20... gxf5 {[%clk 0:01:43.3]}
21. Bxe5 {[%clk 0:02:43.7]} 21... Bxe5 {[%clk 0:01:41.9]} 22. Rxe5 {[%clk
0:02:44.6]} 22... Ne4 {[%clk 0:01:43.1]} 23. Nd3 {[%clk 0:02:40.4]} 23... Qd6
{[%clk 0:01:35.2]} 24. f3 {[%clk 0:02:37.6]} 24... Ng3 {[%clk 0:01:34.2]} 25.
Rde1 {[%clk 0:02:38.7]} 25... Rf8 {[%clk 0:01:20.2]} 26. Qf2 {[%clk 0:02:39.2]}
26... Qg6 {[%clk 0:01:20]} 27. Nf4 {[%clk 0:02:35.1]} 27... Qg7 {[%clk
0:01:20.1]} 28. Qxc5 {[%clk 0:02:31.4]} 28... Rb7 {[%clk 0:01:12.1]} 29. b3
{[%clk 0:02:29.3]} 29... Ne4 {[%clk 0:01:04.1]} 30. R5xe4 {[%clk 0:02:22.3]}
30... fxe4 {[%clk 0:01:05.2]} 31. Rxe4 {[%clk 0:02:23.5]} 31... Bf5 {[%clk
0:00:55.1]} 32. Re3 {[%clk 0:02:13.1]} 32... Bc8 {[%clk 0:00:50.9]} 33. Re4
{[%clk 0:01:56.1]} 33... Bf5 {[%clk 0:00:51]} 34. Re1 {[%clk 0:01:44.7]} 34...
Bc8 {[%clk 0:00:51.5]} 35. Qe3 {[%clk 0:01:45.6]} 35... Kh8 {[%clk 0:00:47.4]}
36. c5 {[%clk 0:01:39.2]} 36... Rc7 {[%clk 0:00:43]} 37. c6 {[%clk 0:01:38.3]}
37... e5 {[%clk 0:00:38.6]} 38. Nd3 {[%clk 0:01:36.2]} 38... Bxh3 {[%clk
0:00:34.9]} 39. Qxe5 {[%clk 0:01:37.3]} 39... Bf5 {[%clk 0:00:32.7]} 40. Qxg7+
{[%clk 0:01:36.2]} 40... Kxg7 {[%clk 0:00:33.1]} 41. Ne5 {[%clk 0:01:35.1]}
41... Re8 {[%clk 0:00:32.3]} 42. Kf2 {[%clk 0:01:34.3]} 42... Bc2 {[%clk
0:00:27.5]} 43. Bc4 {[%clk 0:01:33.9]} 43... Rce7 {[%clk 0:00:27.6]} 44. f4
{[%clk 0:01:34.6]} 44... Rd8 {[%clk 0:00:25.4]} 45. Re2 {[%clk 0:01:28.1]} 45...
Bd1 {[%clk 0:00:26]} 46. Rd2 {[%clk 0:01:28.1]} 46... Bh5 {[%clk 0:00:26.6]} 47.
d6 {[%clk 0:01:29.2]} 47... Ra7 {[%clk 0:00:24.3]} 48. Ke3 {[%clk 0:01:27.3]}
48... Be8 {[%clk 0:00:24.6]} 49. c7 {[%clk 0:01:26.6]} 49... Rc8 {[%clk
0:00:23.7]} 50. Be6 {[%clk 0:01:26]} 50... Rcxc7 {[%clk 0:00:21.8]} 51. dxc7
{[%clk 0:01:27.6]} 51... Rxc7 {[%clk 0:00:23.5]} 52. Bc4 {[%clk 0:01:28.6]} 1-0

[Event "*** Titled Tuesday 3|2 Blitz"]
[Site "Chess.com"]
[Date "2015.12.01"]
[Round "4"]
[White "ethylalcohol"]
[Black "Po6Don"]
[Result "0-1"]
[WhiteElo "1899"]
[BlackElo "2025"]
[TimeControl "180+2"]
[EndTime "17:49:11 PST"]
[Termination "Po6Don won by resignation"]

1. e4 {[%clk 0:03:01.9]} 1... e5 {[%clk 0:02:59.3]} 2. Nf3 {[%clk 0:03:01.9]}
2... Nc6 {[%clk 0:03:00.5]} 3. Bc4 {[%clk 0:03:02.7]} 3... Nf6 {[%clk
0:03:00.5]} 4. d3 {[%clk 0:03:02.5]} 4... d5 {[%clk 0:02:59.6]} 5. exd5 {[%clk
0:03:01.8]} 5... Nxd5 {[%clk 0:03:01.5]} 6. O-O {[%clk 0:03:02.1]} 6... Bg4
{[%clk 0:03:01.3]} 7. c3 {[%clk 0:02:57.2]} 7... Nb6 {[%clk 0:02:58.1]} 8. Bb5
{[%clk 0:02:51.5]} 8... Bd6 {[%clk 0:02:58.2]} 9. h3 {[%clk 0:02:45.7]} 9... Bh5
{[%clk 0:02:58.9]} 10. Nbd2 {[%clk 0:02:36.5]} 10... O-O {[%clk 0:02:59.6]} 11.
Ne4 {[%clk 0:02:34.3]} 11... f5 {[%clk 0:03:00.5]} 12. Ng3 {[%clk 0:02:15]}
12... Bxf3 {[%clk 0:02:44.3]} 13. Qxf3 {[%clk 0:02:13.3]} 13... e4 {[%clk
0:02:44.3]} 14. Qh5 {[%clk 0:01:47.7]} 14... g6 {[%clk 0:02:03.5]} 15. Qh6
{[%clk 0:01:37.7]} 15... exd3 {[%clk 0:01:58.7]} 16. Be3 {[%clk 0:01:22.4]}
16... f4 {[%clk 0:01:47.5]} 17. Bxb6 {[%clk 0:01:21.5]} 17... axb6 {[%clk
0:01:28.6]} 18. Bc4+ {[%clk 0:01:18.8]} 18... Kh8 {[%clk 0:01:28.7]} 19. Ne4
{[%clk 0:01:11.6]} 19... Ne5 {[%clk 0:01:25.4]} 20. Ng5 {[%clk 0:01:07.3]} 20...
Qd7 {[%clk 0:01:20.6]} 21. Be6 {[%clk 0:00:55.3]} 21... Qg7 {[%clk 0:01:20.5]}
22. Qh4 {[%clk 0:00:50.5]} 22... Be7 {[%clk 0:01:20.1]} 23. Qg4 {[%clk 0:00:44]}
23... h5 {[%clk 0:01:11.5]} 24. Qh4 {[%clk 0:00:40.1]} 24... Qf6 {[%clk
0:01:01.3]} 25. g4 {[%clk 0:00:22.8]} 25... Qxg5 {[%clk 0:00:57.2]} 26. Qxg5
{[%clk 0:00:23.4]} 26... Bxg5 {[%clk 0:00:59.1]} 27. Bd5 {[%clk 0:00:20.6]}
27... hxg4 {[%clk 0:00:54.9]} 28. hxg4 {[%clk 0:00:22.5]} 28... f3 {[%clk
0:00:56.8]} 29. Rad1 {[%clk 0:00:21.1]} 29... Kg7 {[%clk 0:00:56.8]} 30. Bxb7
{[%clk 0:00:21.1]} 30... Rad8 {[%clk 0:00:55.7]} 31. Be4 {[%clk 0:00:21.1]}
31... Bf4 {[%clk 0:00:56.8]} 32. Rfe1 {[%clk 0:00:20.1]} 32... Rh8 {[%clk
0:00:57.3]} 33. Bc6 {[%clk 0:00:16.2]} 33... Bh2+ {[%clk 0:00:56.8]} 34. Kf1
{[%clk 0:00:16.7]} 34... d2 {[%clk 0:00:55.6]} 35. Re3 {[%clk 0:00:16.2]} 35...
Bf4 {[%clk 0:00:55.9]} 36. Kg1 {[%clk 0:00:14]} 36... Bxe3 {[%clk 0:00:53.7]}
37. fxe3 {[%clk 0:00:14.9]} 37... Nxg4 {[%clk 0:00:40.3]} 38. Bxf3 {[%clk
0:00:12.9]} 38... Nxe3 {[%clk 0:00:40.8]} 39. Kf2 {[%clk 0:00:13]} 39... Nxd1+
{[%clk 0:00:41.4]} 40. Bxd1 {[%clk 0:00:13.7]} 40... Rh1 {[%clk 0:00:43]} 41.
Ke2 {[%clk 0:00:14.2]} 41... Re1+ {[%clk 0:00:42.8]} 42. Kf2 {[%clk 0:00:14.4]}
42... Rxd1 {[%clk 0:00:44.2]} 0-1

[Event "*** Titled Tuesday 3|2 Blitz"]
[Site "Chess.com"]
[Date "2015.12.01"]
[Round "4"]
[White "Carolina-moon"]
[Black "Assasin14"]
[Result "0-1"]
[WhiteElo "2034"]
[BlackElo "1903"]
[TimeControl "180+2"]
[EndTime "17:49:19 PST"]
[Termination "Assasin14 won by checkmate"]

1. e4 {[%clk 0:03:01.9]} 1... c5 {[%clk 0:03:00]} 2. Nc3 {[%clk 0:03:02.2]} 2...
Nc6 {[%clk 0:02:58.1]} 3. Bb5 {[%clk 0:03:03.6]} 3... Nd4 {[%clk 0:02:53.9]} 4.
Bc4 {[%clk 0:03:04.6]} 4... g6 {[%clk 0:02:54.6]} 5. Nge2 {[%clk 0:03:03.9]}
5... Bg7 {[%clk 0:02:55.5]} 6. Nxd4 {[%clk 0:03:03.1]} 6... cxd4 {[%clk
0:02:57.4]} 7. Qf3 {[%clk 0:03:03.1]} 7... Nh6 {[%clk 0:02:40.5]} 8. Ne2 {[%clk
0:02:56.9]} 8... O-O {[%clk 0:02:33.3]} 9. d3 {[%clk 0:02:53.7]} 9... Ng4 {[%clk
0:01:52.9]} 10. Bb3 {[%clk 0:02:49.2]} 10... Ne5 {[%clk 0:01:52.5]} 11. Qg3
{[%clk 0:02:49.7]} 11... Nc6 {[%clk 0:01:47]} 12. O-O {[%clk 0:02:47.3]} 12...
d6 {[%clk 0:01:39.5]} 13. a3 {[%clk 0:02:46]} 13... Be6 {[%clk 0:01:34.3]} 14.
Bxe6 {[%clk 0:02:43]} 14... fxe6 {[%clk 0:01:36.2]} 15. Nf4 {[%clk 0:02:39.8]}
15... Qc8 {[%clk 0:01:23.7]} 16. Qh3 {[%clk 0:02:25.4]} 16... e5 {[%clk
0:01:16.9]} 17. Qxc8 {[%clk 0:02:25]} 17... Raxc8 {[%clk 0:01:18.3]} 18. Ne6
{[%clk 0:02:03.1]} 18... Rf6 {[%clk 0:01:03.2]} 19. Nxg7 {[%clk 0:02:01.3]}
19... Kxg7 {[%clk 0:01:03.7]} 20. c4 {[%clk 0:01:58.1]} 20... dxc3 {[%clk
0:00:48.5]} 21. bxc3 {[%clk 0:01:58.9]} 21... b5 {[%clk 0:00:44.5]} 22. Bd2
{[%clk 0:01:56]} 22... Na5 {[%clk 0:00:42.6]} 23. Rab1 {[%clk 0:01:55.6]} 23...
Rc5 {[%clk 0:00:29.3]} 24. Rfc1 {[%clk 0:01:50.1]} 24... a6 {[%clk 0:00:21.3]}
25. Be3 {[%clk 0:01:42.8]} 25... Rc6 {[%clk 0:00:21.2]} 26. Kf1 {[%clk
0:01:34.8]} 26... Rf8 {[%clk 0:00:20.6]} 27. Ke2 {[%clk 0:01:34.7]} 27... Rfc8
{[%clk 0:00:21.7]} 28. Kd2 {[%clk 0:01:34.5]} 28... e6 {[%clk 0:00:23]} 29. h4
{[%clk 0:01:32.3]} 29... d5 {[%clk 0:00:23.6]} 30. g4 {[%clk 0:01:21.7]} 30...
Kf7 {[%clk 0:00:24.2]} 31. Rb2 {[%clk 0:01:20]} 31... R6c7 {[%clk 0:00:25.1]}
32. exd5 {[%clk 0:01:18.5]} 32... exd5 {[%clk 0:00:25.9]} 33. Rbc2 {[%clk
0:01:16.1]} 33... Nb3+ {[%clk 0:00:26.4]} 34. Ke2 {[%clk 0:01:16.3]} 34... Nxc1+
{[%clk 0:00:28.3]} 35. Rxc1 {[%clk 0:01:15.7]} 35... Rxc3 {[%clk 0:00:29.7]} 36.
Rd1 {[%clk 0:01:17.3]} 36... Rxa3 {[%clk 0:00:29.7]} 37. h5 {[%clk 0:01:16.2]}
37... Ra2+ {[%clk 0:00:30.9]} 38. Kf3 {[%clk 0:01:16.9]} 38... Kg7 {[%clk
0:00:30.9]} 39. d4 {[%clk 0:01:12.2]} 39... Rf8+ {[%clk 0:00:30.8]} 40. Kg3
{[%clk 0:01:13]} 40... e4 {[%clk 0:00:32.1]} 41. Bf4 {[%clk 0:01:13.5]} 41...
Ra3+ {[%clk 0:00:32.4]} 42. Be3 {[%clk 0:01:13.3]} 42... Rf3+ {[%clk 0:00:32.7]}
43. Kg2 {[%clk 0:01:13.9]} 43... Rfxe3 {[%clk 0:00:33.8]} 44. fxe3 {[%clk
0:01:15]} 44... Rxe3 {[%clk 0:00:35.7]} 45. hxg6 {[%clk 0:01:14]} 45... Kxg6
{[%clk 0:00:36.6]} 46. Rc1 {[%clk 0:01:11.8]} 46... Rd3 {[%clk 0:00:37.8]} 47.
Rc7 {[%clk 0:01:11.5]} 47... Kg5 {[%clk 0:00:39.1]} 48. Ra7 {[%clk 0:01:09.6]}
48... Kxg4 {[%clk 0:00:38.5]} 49. Rxa6 {[%clk 0:01:10.8]} 49... Rxd4 {[%clk
0:00:39.8]} 50. Rh6 {[%clk 0:01:11]} 50... b4 {[%clk 0:00:40.9]} 51. Rxh7 {[%clk
0:01:12.2]} 51... b3 {[%clk 0:00:41.1]} 52. Rb7 {[%clk 0:01:13.7]} 52... Rd2+
{[%clk 0:00:41.7]} 53. Kf1 {[%clk 0:01:14.5]} 53... b2 {[%clk 0:00:42.8]} 54.
Ke1 {[%clk 0:01:15.2]} 54... Rh2 {[%clk 0:00:43.8]} 55. Rg7+ {[%clk 0:01:12.5]}
55... Kf3 {[%clk 0:00:44.7]} 56. Rb7 {[%clk 0:01:13.6]} 56... b1=Q+ {[%clk
0:00:44.3]} 57. Rxb1 {[%clk 0:01:13.8]} 57... Rh1+ {[%clk 0:00:45.9]} 58. Kd2
{[%clk 0:01:15.4]} 58... Rxb1 {[%clk 0:00:47.5]} 59. Kc2 {[%clk 0:01:16.8]}
59... e3 {[%clk 0:00:48.7]} 60. Kxb1 {[%clk 0:01:17.7]} 60... e2 {[%clk
0:00:50.6]} 61. Kc2 {[%clk 0:01:19.1]} 61... e1=Q {[%clk 0:00:51.4]} 62. Kd3
{[%clk 0:01:20.7]} 62... Qe2+ {[%clk 0:00:52.4]} 63. Kc3 {[%clk 0:01:21.6]}
63... Qc4+ {[%clk 0:00:53.3]} 64. Kd2 {[%clk 0:01:22.6]} 64... d4 {[%clk
0:00:54.9]} 65. Ke1 {[%clk 0:01:23.7]} 65... Qe2# {[%clk 0:00:54.3]} 0-1

[Event "*** Titled Tuesday 3|2 Blitz"]
[Site "Chess.com"]
[Date "2015.12.01"]
[Round "4"]
[White "yopino"]
[Black "Colombiano07"]
[Result "1-0"]
[WhiteElo "2231"]
[BlackElo "2110"]
[TimeControl "180+2"]
[EndTime "17:49:25 PST"]
[Termination "yopino won by resignation"]

1. e4 {[%clk 0:03:01.9]} 1... g6 {[%clk 0:02:22.4]} 2. d4 {[%clk 0:03:01.2]}
2... Bg7 {[%clk 0:02:24.3]} 3. Nc3 {[%clk 0:03:01.5]} 3... c5 {[%clk 0:02:25.5]}
4. dxc5 {[%clk 0:02:50.9]} 4... Bxc3+ {[%clk 0:02:25.1]} 5. bxc3 {[%clk
0:02:49]} 5... Qa5 {[%clk 0:02:27]} 6. Qd4 {[%clk 0:02:47.2]} 6... Nf6 {[%clk
0:02:26.7]} 7. Qb4 {[%clk 0:02:43.9]} 7... Nc6 {[%clk 0:02:20]} 8. Qxa5 {[%clk
0:02:36]} 8... Nxa5 {[%clk 0:02:21.9]} 9. Bd3 {[%clk 0:02:26.3]} 9... O-O {[%clk
0:02:21]} 10. h3 {[%clk 0:02:16.3]} 10... b6 {[%clk 0:02:10.9]} 11. cxb6 {[%clk
0:02:16.2]} 11... axb6 {[%clk 0:02:12.8]} 12. Be3 {[%clk 0:02:14.2]} 12... Bb7
{[%clk 0:01:51]} 13. f3 {[%clk 0:02:08.8]} 13... Rfb8 {[%clk 0:01:38.2]} 14. Ne2
{[%clk 0:02:07.9]} 14... d5 {[%clk 0:01:38.7]} 15. e5 {[%clk 0:02:06.5]} 15...
Nd7 {[%clk 0:01:37.3]} 16. f4 {[%clk 0:02:03.7]} 16... e6 {[%clk 0:01:38.3]} 17.
Kf2 {[%clk 0:02:04]} 17... Ba6 {[%clk 0:01:20.6]} 18. Rhb1 {[%clk 0:01:57.9]}
18... Nc4 {[%clk 0:01:20]} 19. Bd4 {[%clk 0:01:44.7]} 19... Kf8 {[%clk
0:01:13.8]} 20. a4 {[%clk 0:01:41.4]} 20... Ke8 {[%clk 0:01:10.2]} 21. Rb4
{[%clk 0:01:41.5]} 21... Kd8 {[%clk 0:01:08.1]} 22. g4 {[%clk 0:01:42]} 22...
Kc7 {[%clk 0:01:08.3]} 23. Rab1 {[%clk 0:01:35.8]} 23... Nc5 {[%clk 0:01:05.8]}
24. Bxc5 {[%clk 0:00:51.9]} 24... bxc5 {[%clk 0:01:06.2]} 25. Rxb8 {[%clk
0:00:51.9]} 25... Rxb8 {[%clk 0:01:08.1]} 26. Rxb8 {[%clk 0:00:52.7]} 26... Kxb8
{[%clk 0:01:10]} 27. Ng1 {[%clk 0:00:36.5]} 27... Kc7 {[%clk 0:01:08.2]} 28. Nf3
{[%clk 0:00:37.2]} 28... h6 {[%clk 0:01:07.7]} 29. h4 {[%clk 0:00:30.2]} 29...
Kd7 {[%clk 0:00:52.9]} 30. Ke2 {[%clk 0:00:14]} 30... Kc7 {[%clk 0:00:51.3]} 31.
Nd2 {[%clk 0:00:14.9]} 31... Nxd2 {[%clk 0:00:40.5]} 32. Bxa6 {[%clk 0:00:15.2]}
32... Ne4 {[%clk 0:00:35.7]} 33. c4 {[%clk 0:00:16.3]} 33... d4 {[%clk
0:00:25.6]} 34. Bb5 {[%clk 0:00:16.2]} 34... g5 {[%clk 0:00:10.4]} 35. fxg5
{[%clk 0:00:14.9]} 35... hxg5 {[%clk 0:00:12.3]} 36. h5 {[%clk 0:00:16.1]} 36...
f6 {[%clk 0:00:10.7]} 37. h6 {[%clk 0:00:14.7]} 37... fxe5 {[%clk 0:00:08.8]}
38. h7 {[%clk 0:00:15.5]} 1-0

[Event "*** Titled Tuesday 3|2 Blitz"]
[Site "Chess.com"]
[Date "2015.12.01"]
[Round "4"]
[White "norwaytoadog"]
[Black "JustKid"]
[Result "0-1"]
[WhiteElo "1895"]
[BlackElo "2101"]
[TimeControl "180+2"]
[EndTime "17:49:47 PST"]
[Termination "JustKid won on time"]

1. e4 {[%clk 0:03:01.6]} 1... d6 {[%clk 0:02:59.4]} 2. d4 {[%clk 0:03:01.2]}
2... Nf6 {[%clk 0:03:00.8]} 3. Nc3 {[%clk 0:03:01.6]} 3... g6 {[%clk 0:03:02.2]}
4. Nf3 {[%clk 0:02:59.1]} 4... Bg7 {[%clk 0:03:03.3]} 5. h3 {[%clk 0:03:00.1]}
5... O-O {[%clk 0:03:03.9]} 6. Be3 {[%clk 0:02:59.4]} 6... c6 {[%clk 0:03:05]}
7. a4 {[%clk 0:02:58.3]} 7... Qc7 {[%clk 0:03:04.8]} 8. Bc4 {[%clk 0:02:58.3]}
8... Nxe4 {[%clk 0:02:52.3]} 9. Nxe4 {[%clk 0:02:53.1]} 9... d5 {[%clk
0:02:51.9]} 10. Bd3 {[%clk 0:02:50]} 10... dxe4 {[%clk 0:02:52.6]} 11. Bxe4
{[%clk 0:02:50.7]} 11... Nd7 {[%clk 0:02:54.2]} 12. O-O {[%clk 0:02:49.9]} 12...
Nf6 {[%clk 0:02:54.6]} 13. Bd3 {[%clk 0:02:49.2]} 13... Nd5 {[%clk 0:02:52.5]}
14. Bg5 {[%clk 0:02:39.5]} 14... h6 {[%clk 0:02:39.3]} 15. Bh4 {[%clk
0:02:34.9]} 15... Be6 {[%clk 0:02:37.2]} 16. c3 {[%clk 0:02:30.7]} 16... Rad8
{[%clk 0:02:37.1]} 17. Bg3 {[%clk 0:02:29.6]} 17... Qc8 {[%clk 0:02:26.1]} 18.
Re1 {[%clk 0:02:30.2]} 18... Kh7 {[%clk 0:02:19.4]} 19. Qc2 {[%clk 0:02:22.5]}
19... Bf6 {[%clk 0:01:31.2]} 20. h4 {[%clk 0:02:12.2]} 20... Bg4 {[%clk
0:01:27.9]} 21. Ne5 {[%clk 0:02:04.5]} 21... Bxe5 {[%clk 0:01:22.3]} 22. Rxe5
{[%clk 0:02:01.4]} 22... Nf6 {[%clk 0:00:54.8]} 23. Rae1 {[%clk 0:01:56.8]}
23... e6 {[%clk 0:00:53.8]} 24. Bf4 {[%clk 0:01:41.7]} 24... Bf5 {[%clk
0:00:49.7]} 25. Bxf5 {[%clk 0:01:39.5]} 25... gxf5 {[%clk 0:00:50.7]} 26. f3
{[%clk 0:01:32.5]} 26... Rg8 {[%clk 0:00:48.6]} 27. Kh2 {[%clk 0:01:25.4]} 27...
Nd5 {[%clk 0:00:49.1]} 28. Bc1 {[%clk 0:01:15.4]} 28... Qd7 {[%clk 0:00:44.4]}
29. h5 {[%clk 0:01:10.4]} 29... Qe7 {[%clk 0:00:32.6]} 30. Kh3 {[%clk
0:00:49.9]} 30... Qf6 {[%clk 0:00:26.6]} 31. Qd2 {[%clk 0:00:48.1]} 31... Qg7
{[%clk 0:00:20]} 32. Qf2 {[%clk 0:00:48.6]} 32... Nf6 {[%clk 0:00:18.3]} 33. a5
{[%clk 0:00:20.1]} 33... Nxh5 {[%clk 0:00:18.5]} 34. a6 {[%clk 0:00:19.7]} 34...
b6 {[%clk 0:00:19.2]} 35. Rg1 {[%clk 0:00:15.1]} 35... Nf6 {[%clk 0:00:20.1]}
36. g4 {[%clk 0:00:13.2]} 36... fxg4+ {[%clk 0:00:21.4]} 37. fxg4 {[%clk
0:00:13.5]} 37... Nxg4 {[%clk 0:00:21.8]} 38. Qc2+ {[%clk 0:00:11.4]} 38... f5
{[%clk 0:00:22.1]} 39. Rxe6 {[%clk 0:00:05.7]} 39... Rdf8 {[%clk 0:00:17.5]} 40.
Rxh6+ {[%clk 0:00:05.7]} 40... Nxh6 {[%clk 0:00:15.3]} 41. Rxg7+ {[%clk
0:00:06.1]} 41... Rxg7 {[%clk 0:00:15.3]} 42. Bxh6 {[%clk 0:00:03.9]} 42... Kxh6
{[%clk 0:00:17.2]} 0-1

[Event "*** Titled Tuesday 3|2 Blitz"]
[Site "Chess.com"]
[Date "2015.12.01"]
[Round "4"]
[White "chessbia"]
[Black "pKiLz5Rn9b"]
[Result "1-0"]
[WhiteElo "2143"]
[BlackElo "2410"]
[TimeControl "180+2"]
[EndTime "17:49:47 PST"]
[Termination "chessbia won by resignation"]

1. d4 {[%clk 0:03:01.9]} 1... e6 {[%clk 0:02:58.2]} 2. c4 {[%clk 0:02:59.9]}
2... Nf6 {[%clk 0:02:58.1]} 3. Nc3 {[%clk 0:02:50.2]} 3... Bb4 {[%clk
0:02:57.8]} 4. Qc2 {[%clk 0:02:33.2]} 4... d5 {[%clk 0:02:58.2]} 5. cxd5 {[%clk
0:02:33.5]} 5... exd5 {[%clk 0:02:58.3]} 6. Bg5 {[%clk 0:02:34.9]} 6... h6
{[%clk 0:02:59.3]} 7. Bh4 {[%clk 0:02:29.7]} 7... c5 {[%clk 0:03:00.1]} 8. dxc5
{[%clk 0:02:30.3]} 8... g5 {[%clk 0:02:59]} 9. Bg3 {[%clk 0:02:30.9]} 9... Ne4
{[%clk 0:03:00.6]} 10. e3 {[%clk 0:02:22.4]} 10... Qa5 {[%clk 0:03:01.2]} 11.
Rc1 {[%clk 0:02:21.6]} 11... Bf5 {[%clk 0:03:02.1]} 12. Bxb8 {[%clk 0:02:15.5]}
12... Rxb8 {[%clk 0:02:40.9]} 13. Bd3 {[%clk 0:02:13.7]} 13... O-O {[%clk
0:02:31.4]} 14. Ne2 {[%clk 0:02:12.5]} 14... Nxc3 {[%clk 0:02:28.1]} 15. Nxc3
{[%clk 0:02:08.5]} 15... Bxd3 {[%clk 0:02:23.2]} 16. Qxd3 {[%clk 0:02:08.1]}
16... Qxc5 {[%clk 0:02:25.1]} 17. O-O {[%clk 0:02:08.2]} 17... Rfd8 {[%clk
0:02:24.5]} 18. Rfd1 {[%clk 0:01:57.6]} 18... Rbc8 {[%clk 0:02:21]} 19. a3
{[%clk 0:01:53.1]} 19... Bxc3 {[%clk 0:02:17.6]} 20. Rxc3 {[%clk 0:01:49.3]}
20... Qb6 {[%clk 0:02:19]} 21. Rxc8 {[%clk 0:01:46.5]} 21... Rxc8 {[%clk
0:02:20.9]} 22. Qxd5 {[%clk 0:01:47.7]} 22... Qxb2 {[%clk 0:02:15.4]} 23. h4
{[%clk 0:01:46.8]} 23... Qf6 {[%clk 0:02:02.7]} 24. hxg5 {[%clk 0:01:45.3]}
24... hxg5 {[%clk 0:02:03.6]} 25. Qxb7 {[%clk 0:01:46.2]} 25... Rc2 {[%clk
0:02:03.2]} 26. Qa8+ {[%clk 0:01:38.8]} 26... Kg7 {[%clk 0:02:03.5]} 27. Qf3
{[%clk 0:01:38.7]} 27... Qe6 {[%clk 0:01:54.1]} 28. Qg3 {[%clk 0:01:33.6]} 28...
f6 {[%clk 0:01:48.2]} 29. Rb1 {[%clk 0:01:28.6]} 29... Qa2 {[%clk 0:01:46.5]}
30. Rb7+ {[%clk 0:01:27.8]} 30... Kg6 {[%clk 0:01:46.9]} 31. Qh3 {[%clk
0:01:20.3]} 31... Qa1+ {[%clk 0:01:38.4]} 32. Kh2 {[%clk 0:01:20.6]} 32... Qe5+
{[%clk 0:01:40.3]} 33. g3 {[%clk 0:01:21.8]} 33... Rc7 {[%clk 0:01:15.1]} 34.
Rxc7 {[%clk 0:01:19.9]} 34... Qxc7 {[%clk 0:01:17]} 35. Qe6 {[%clk 0:01:18.1]}
35... Qc5 {[%clk 0:01:15.1]} 36. Qe4+ {[%clk 0:01:14.5]} 36... Kg7 {[%clk
0:01:15.7]} 37. a4 {[%clk 0:01:13.6]} 37... a5 {[%clk 0:01:16.3]} 38. Kg2 {[%clk
0:01:12.7]} 38... Qb4 {[%clk 0:01:14.4]} 39. Qc6 {[%clk 0:01:09.3]} 39... g4
{[%clk 0:01:12.2]} 40. Qb5 {[%clk 0:00:59.1]} 40... Kg6 {[%clk 0:01:12.2]} 41.
Qe8+ {[%clk 0:00:55.8]} 41... Kg5 {[%clk 0:01:11.4]} 42. Qg8+ {[%clk 0:00:49.1]}
42... Kf5 {[%clk 0:01:10]} 43. Qd5+ {[%clk 0:00:46.6]} 43... Kg6 {[%clk
0:01:11]} 44. Qd4 {[%clk 0:00:47.4]} 44... Kf5 {[%clk 0:01:03.5]} 45. Qf4+
{[%clk 0:00:46.3]} 45... Qxf4 {[%clk 0:00:51.3]} 46. gxf4 {[%clk 0:00:44.7]}
46... Ke4 {[%clk 0:00:50.8]} 47. Kg3 {[%clk 0:00:34]} 47... f5 {[%clk
0:00:50.6]} 48. Kg2 {[%clk 0:00:35]} 48... Kd3 {[%clk 0:00:34]} 49. Kg3 {[%clk
0:00:34.1]} 49... Ke2 {[%clk 0:00:31.4]} 50. e4 {[%clk 0:00:35]} 1-0